bitfinex/quotes_ETHUSD_20241001
["timestamp","ask_amount","ask_price","bid_price","bid_amount"]
[1727820038900,4.14734638,2473.1,2472.5,4.04432]
[1727820039067,5.46942152,2473.1,2472.6,4.04431]
[1727820039402,1.42590152,2473.1,2472.5,4.04445]
[1727820039695,4.04367,2473.0,2472.5,4.04445]
[1727820040309,0.10382638,2472.9,2472.4,8.08904]
[1727820040667,0.7753,2472.8,2472.4,4.0445]
[1727820041308,0.10382638,2472.7,2472.4,8.08905]
[1727820041481,0.10382638,2472.7,2472.5,4.04447]
[1727820041677,0.10323573,2472.6,2472.5,4.04448]
[1727820042093,0.7753,2472.8,2472.5,4.04448]
[1727820042705,0.10323573,2472.7,2472.5,4.04448]
[1727820042876,0.10323573,2472.7,2472.4,4.0445]
[1727820043205,0.10323573,2472.6,2472.4,4.0445]
[1727820043573,0.7753,2472.8,2472.6,4.04419]
[1727820043781,0.7753,2472.8,2472.7,4.04416]
[1727820044001,0.7573,2473.2,2472.7,0.808835]
[1727820044166,0.7573,2473.4,2473.1,4.0435]
[1727820044367,0.7573,2473.4,2473.2,4.04331]
[1727820044611,1.30775159,2474.3,2473.6,4.0426]
[1727820044612,0.7573,2473.9,2473.6,4.0426]
[1727820045419,0.7573,2474.3,2473.8,4.04236]
[1727820045567,0.7573,2474.3,2474.1,4.04184]
[1727820045771,0.07036252,2475.3,2474.3,4.04144]
[1727820045772,0.7573,2474.7,2474.3,4.04144]
[1727820046170,0.7573,2474.7,2474.3,8.08289]
[1727820046368,0.7573,2474.7,2474.3,4.04144]
[1727820046609,0.7573,2474.7,2474.3,8.08288]
[1727820046810,0.7573,2474.7,2474.3,4.04144]
[1727820049651,0.09967626,2474.6,2474.3,4.04144]
[1727820050525,0.09967626,2474.6,2474.1,4.04174]
[1727820050790,0.09967626,2474.6,2474.1,4.445914]
[1727820051653,0.09967626,2474.6,2474.1,8.487674]
[1727820051807,0.09967626,2474.6,2474.2,4.04168]
[1727820052907,4.14074626,2474.6,2474.0,4.04203]
[1727820053145,4.14074626,2474.6,2473.6,0.8324]
[1727820053146,4.0414,2474.4,2473.8,4.04227]
[1727820053315,0.7573,2474.2,2473.8,4.04227]
[1727820053524,4.04196,2474.1,2473.5,4.04269]
[1727820053839,0.09967626,2474.1,2473.5,4.04269]
[1727820054350,0.09967626,2474.1,2473.7,4.04248]
[1727820058363,0.09967626,2474.1,2473.7,4.851001]
[1727820058554,0.09967626,2474.1,2474.0,4.04203]
[1727820058723,0.09967626,2474.1,2474.0,4.12140983]
[1727820059055,0.09967626,2474.1,2472.7,5.682685]
[1727820059056,4.04312,2473.4,2472.7,5.682685]
[1727820059256,5.256132,2473.4,2472.7,4.87385]
[1727820059458,0.18149092,2473.3,2472.7,4.87385]
[1727820059656,0.18149092,2473.3,2472.3,4.87452]
[1727820059657,4.04367,2473.0,2472.3,4.87452]
[1727820059960,0.08082919,2472.9,2472.4,4.04463]
[1727820060160,0.18136393,2472.9,2472.4,4.04463]
[1727820060458,0.10052704,2472.8,2472.3,4.87452]
[1727820060667,0.90922704,2472.8,2472.2,4.0449]
[1727820060956,0.08082919,2472.7,2472.2,4.0449]
[1727820061369,0.18111755,2472.7,2472.2,4.0449]
[1727820061522,0.18111755,2472.7,2472.1,4.04504]
[1727820061862,0.68449331,2472.7,2472.1,4.04504]
[1727820062076,0.68449331,2472.7,2472.1,4.04501]
[1727820062368,0.68449331,2472.7,2471.9,4.04538]
[1727820062369,8.08919,2472.5,2471.9,4.04538]
[1727820062533,8.08919,2472.5,2471.7,4.87554]
[1727820062534,4.12548919,2472.4,2471.7,4.04574]
[1727820062956,0.08082919,2472.4,2471.9,4.04537]
[1727820063176,0.10022675,2472.3,2471.9,4.04537]
[1727820063375,0.08082919,2472.2,2471.9,4.04537]
[1727820063583,0.08082919,2472.2,2471.7,4.0457]
[1727820063877,0.10022675,2472.1,2471.9,4.04544]
[1727820064163,0.10022675,2472.1,2471.8,4.04563]
[1727820064375,0.10022675,2472.1,2471.6,4.04588]
[1727820064376,0.8087,2472.0,2471.6,4.04588]
[1727820064538,0.8087,2472.0,2471.3,4.04637]
[1727820064539,0.08082919,2471.9,2471.3,4.04637]
[1727820064734,0.08082919,2471.9,2471.4,4.04617]
[1727820064933,0.09997635,2471.8,2471.4,4.04617]
[1727820065179,0.08082919,2471.7,2471.3,8.09271]
[1727820065478,0.18079784,2471.7,2471.3,4.04635]
[1727820065847,0.08082919,2471.7,2471.5,4.04611]
[1727820066001,0.09996865,2471.6,2471.4,4.04627]
[1727820066156,0.09996865,2471.6,2471.5,4.04612]
[1727820066353,0.08082919,2471.9,2471.5,4.04612]
[1727820066558,0.09996865,2471.8,2471.5,4.04612]
[1727820066791,0.09996865,2471.8,2471.4,4.04627]
[1727820066986,0.09996865,2471.8,2471.4,8.09246]
[1727820067192,0.09996865,2471.8,2471.5,4.04609]
[1727820067404,0.09996865,2471.8,2470.9,4.04701]
[1727820067405,0.08082919,2471.7,2470.9,4.04701]
[1727820067563,0.08082919,2471.7,2471.1,4.04666]
[1727820067564,0.50347197,2471.7,2471.1,4.04666]
[1727820067762,0.09983377,2471.6,2471.2,4.04651]
[1727820067998,0.08082919,2471.5,2471.2,4.04651]
[1727820068309,0.08082919,2471.5,2471.3,4.04642]
[1727820068503,0.09983377,2471.4,2471.2,4.0466]
[1727820068663,0.09983377,2471.4,2471.3,4.04645]
[1727820069866,0.09983377,2471.4,2471.2,4.0466]
[1727820070185,0.09983377,2471.4,2471.3,4.04645]
[1727820070391,3.0,2471.9,2471.6,4.0458]
[1727820070392,0.08082919,2471.9,2471.6,4.0458]
[1727820070564,0.09983377,2471.8,2471.7,4.04577]
[1727820070961,0.09983377,2471.8,2471.6,4.0458]
[1727820071696,0.09983377,2471.8,2471.2,4.87636]
[1727820071697,0.09983377,2471.8,2471.5,4.04612]
[1727820071864,0.09983377,2471.8,2471.6,4.04595]
[1727820072268,0.09983377,2471.8,2471.7,4.04579]
[1727820072578,0.09983377,2471.8,2471.6,4.04595]
[1727820072905,0.8087,2472.0,2471.6,4.04595]
[1727820073099,0.08082919,2471.9,2471.6,4.04595]
[1727820073269,0.17973866,2471.9,2471.6,4.04595]
[1727820073472,0.17973866,2471.9,2471.6,4.04586]
[1727820076121,0.17973866,2471.9,2471.5,4.04608]
[1727820076413,0.17973866,2471.9,2471.8,4.04563]
[1727820076414,0.09890947,2471.9,2471.8,4.04563]
[1727820076570,0.86102919,2472.4,2471.7,4.83907]
[1727820076765,0.09890947,2472.3,2472.2,4.04493]
[1727820076971,0.09890947,2472.3,2471.7,4.83907]
[1727820076972,0.48525419,2472.6,2472.1,4.04512]
[1727820077179,0.09890947,2472.5,2472.3,4.04477]
[1727820077395,0.09890947,2472.5,2472.1,4.04503]
[1727820077588,0.09890947,2472.5,2472.2,4.04491]
[1727820077775,0.09890947,2472.5,2472.1,4.04503]
[1727820078176,0.08082919,2472.4,2472.1,4.04503]
[1727820078568,0.09890947,2472.3,2472.1,4.04503]
[1727820078769,0.08082919,2472.6,2472.2,4.04498]
[1727820078963,0.09890947,2472.5,2472.1,4.04503]
[1727820079274,0.08082919,2472.4,2472.1,4.04503]
[1727820079779,0.09890947,2472.3,2472.1,4.04503]
[1727820079980,0.08082919,2472.5,2472.1,4.04503]
[1727820080176,0.09890947,2472.4,2472.1,4.04503]
[1727820080402,0.09890947,2472.4,2472.2,4.04496]
[1727820080600,0.09890947,2472.4,2472.1,8.09007]
[1727820080802,0.09890947,2472.4,2472.1,4.04503]
[1727820081961,0.09890947,2472.4,2472.2,4.04494]
[1727820082291,0.09890947,2472.4,2472.1,4.04502]
[1727820083907,0.09890947,2472.4,2471.9,4.04536]
[1727820084110,0.09890947,2472.4,2471.9,8.09067]
[1727820084435,0.09890947,2472.4,2472.0,4.04525]
[1727820086449,4.12574919,2472.3,2471.7,4.04564]
[1727820086658,4.82525,2472.2,2471.7,4.04564]
[1727820086815,0.08082919,2472.1,2471.7,4.04564]
[1727820087008,4.12603919,2472.1,2471.6,4.04594]
[1727820087229,4.04555,2471.9,2471.4,4.04628]
[1727820087428,0.7802,2471.7,2471.1,4.04669]
[1727820087747,4.04631,2471.4,2470.9,4.04708]
[1727820087912,0.08082919,2471.3,2470.9,4.04708]
[1727820088112,4.22650855,2471.3,2470.8,4.04717]
[1727820088311,5.0537744,2471.3,2470.8,4.04717]
[1727820088525,1.0073244,2471.3,2470.8,4.04716]
[1727820088725,1.0073244,2471.3,2470.9,4.04701]
[1727820088920,0.08082919,2471.2,2470.9,4.04701]
[1727820089361,0.08082919,2471.6,2471.3,4.04645]
[1727820089561,0.87149611,2471.6,2471.3,4.04645]
[1727820091946,4.04619,2471.5,2471.0,4.04688]
[1727820092191,4.04619,2471.5,2471.0,8.09376]
[1727820092192,0.08082919,2471.4,2471.0,8.09376]
[1727820092320,0.08082919,2471.4,2471.0,4.04688]
[1727820093163,4.83373,2471.3,2470.7,8.09477]
[1727820093369,4.83373,2471.3,2470.7,4.04735]
[1727820093370,4.61890511,2471.2,2470.7,4.04735]
[1727820094024,0.57228511,2471.2,2470.7,4.04735]
[1727820094265,4.04678,2471.1,2470.7,4.04735]
[1727820094497,0.08082919,2471.0,2470.7,4.04735]
[1727820095136,0.09850462,2470.9,2470.7,4.04735]
[1727820096580,0.09850462,2470.9,2470.7,8.0947]
[1727820096785,0.09850462,2470.9,2470.7,4.04735]
[1727820097233,0.09850462,2470.9,2470.5,4.04764]
[1727820097408,0.09850462,2470.9,2469.6,4.88629223]
[1727820097409,0.7872,2470.7,2470.2,4.04817]
[1727820097580,0.7872,2470.7,2470.3,4.04808]
[1727820097581,0.08082919,2470.6,2470.3,4.04808]
[1727820097907,0.09839278,2470.5,2470.3,4.04808]
[1727820098067,0.09839278,2470.5,2470.2,4.04823]
[1727820098272,0.09839278,2470.5,2470.2,4.04816]
[1727820098483,0.09839278,2470.5,2470.3,4.04799]
[1727820098667,0.09839278,2470.5,2470.4,4.04792]
[1727820098881,0.09839278,2470.5,2470.3,4.04799]
[1727820099286,0.09839278,2470.5,2470.1,4.0483]
[1727820099484,0.09839278,2470.5,2470.2,4.04814]
[1727820101429,0.09839278,2470.5,2469.7,4.04896]
[1727820101430,0.86802919,2470.4,2469.7,4.04896]
[1727820101577,4.0485,2470.1,2469.6,4.04923]
[1727820101922,0.17900977,2470.0,2469.7,4.04905]
[1727820102219,0.86802919,2469.9,2469.3,4.0496]
[1727820102515,0.86802919,2469.9,2469.4,4.04941]
[1727820102672,0.7872,2469.9,2469.6,4.04923]
[1727820102878,0.09809953,2469.8,2469.6,4.04923]
[1727820103402,0.09809953,2469.8,2469.5,4.04939]
[1727820103726,0.09809953,2469.8,2469.4,4.04955]
[1727820103727,0.17892872,2469.8,2469.4,4.04955]
[1727820103877,0.17892872,2469.8,2469.5,4.04934]
[1727820106688,0.09809953,2469.8,2469.5,4.04934]
[1727820106891,0.09809953,2469.8,2469.6,4.04915]
[1727820107201,0.09809953,2469.8,2469.6,4.04923]
[1727820109279,0.09809953,2469.8,2469.7,4.04907]
[1727820109681,0.09809953,2469.8,2469.7,4.93987526]
[1727820109874,0.08082919,2470.3,2470.0,4.04857]
[1727820110081,0.85542919,2470.4,2470.0,4.04857]
[1727820112477,4.90336919,2470.4,2470.0,4.04857]
[1727820113192,0.85542919,2470.4,2470.0,4.04857]
[1727820113508,0.85542919,2470.4,2470.0,8.09704]
[1727820113829,3.7746,2470.6,2470.2,4.04817]
[1727820113984,0.08082919,2470.6,2470.2,4.04817]
[1727820114405,0.08082919,2470.7,2470.3,3.69064829]
[1727820114611,4.90279919,2470.8,2470.3,3.69064829]
[1727820114817,4.90279919,2470.8,2470.2,4.04814]
[1727820114994,4.90279919,2470.8,2470.3,4.04805]
[1727820115481,4.82197,2470.8,2470.3,4.04805]
[1727820115682,3.08082919,2470.9,2470.5,4.04775]
[1727820115884,0.08082919,2470.9,2470.5,4.04775]
[1727820116185,4.90245919,2471.0,2470.5,4.04775]
[1727820116379,8.94951919,2471.0,2470.5,4.04775]
[1727820116631,0.08082919,2470.9,2470.4,4.04777]
[1727820116781,4.12793919,2470.9,2470.4,4.04777]
[1727820116988,0.08082919,2470.9,2470.5,4.04773]
[1727820117493,4.12751919,2471.2,2470.7,4.04742]
[1727820117713,3.08082919,2471.2,2470.8,4.04724]
[1727820118020,0.08082919,2471.2,2470.8,4.04724]
[1727820119021,4.91646919,2471.3,2470.8,4.04724]
[1727820119246,0.86992919,2471.3,2471.0,3.69064829]
[1727820119527,4.83517,2471.6,2471.1,4.04676]
[1727820119836,0.7891,2471.6,2471.2,4.0466]
[1727820120048,0.86992919,2471.6,2471.2,4.0466]
[1727820120187,4.12662919,2471.7,2471.2,4.47784829]
[1727820120395,4.12682919,2471.6,2471.2,4.47784829]
[1727820120588,4.12682919,2471.6,2471.2,0.7872]
[1727820121928,0.08082919,2471.6,2471.2,0.7872]
[1727820122363,0.08082919,2471.6,2471.3,4.04643]
[1727820123062,0.57240211,2471.7,2471.3,4.04643]
[1727820123362,0.08082919,2471.7,2471.2,0.7872]
[1727820123518,4.04596,2471.6,2471.1,4.04668]
[1727820123721,0.08082919,2471.5,2471.1,4.04668]
[1727820123918,4.83549,2471.4,2470.7,4.83452]
[1727820124158,4.0467,2471.2,2470.7,4.04732]
[1727820124360,4.12762919,2471.1,2470.5,8.09531]
[1727820124565,4.12762919,2471.1,2470.5,4.04764]
[1727820124566,4.22592553,2471.1,2470.5,4.04764]
[1727820124853,0.7891,2470.9,2470.5,4.04764]
[1727820125058,0.08082919,2470.8,2470.5,4.04764]
[1727820125234,0.17912553,2470.7,2470.3,4.048]
[1727820126128,0.17912553,2470.7,2470.3,8.09599]
[1727820126536,4.72810708,2470.7,2469.9,4.04863]
[1727820126729,4.048,2470.4,2469.9,4.04863]
[1727820126930,4.048,2470.4,2469.9,8.09729]
[1727820126931,0.08082919,2470.3,2469.9,8.09729]
[1727820127130,0.17890183,2470.3,2469.9,8.09729]
[1727820127463,0.17890183,2470.3,2470.0,4.04852]
[1727820127620,0.17890183,2470.3,2469.9,4.04863]
[1727820127825,0.17890183,2470.3,2469.5,4.04927]
[1727820127826,0.7891,2470.2,2469.5,4.04927]
[1727820128024,3.0,2469.8,2469.3,4.04967]
[1727820128247,3.0,2469.8,2469.1,4.05002]
[1727820128248,4.83834,2469.6,2469.1,4.04996]
[1727820128458,3.17847733,2469.5,2469.1,4.04996]
[1727820129132,7.22787733,2469.5,2468.9,4.1737498]
[1727820129332,1.20662173,2469.4,2468.9,4.1737398]
[1727820129523,0.08082919,2469.3,2469.1,4.04996]
[1727820129854,0.09735471,2469.2,2469.1,4.04996]
[1727820130058,0.08082919,2469.5,2469.1,4.04996]
[1727820130270,0.09735471,2469.4,2469.2,4.04976]
[1727820130568,0.09735471,2469.4,2469.1,4.04996]
[1727820130569,0.09735471,2469.4,2469.1,4.04993]
[1727820130855,0.09735471,2469.4,2469.1,8.09987]
[1727820131021,0.09735471,2469.4,2468.9,4.1737298]
[1727820131221,0.08082919,2469.3,2468.9,4.1737298]
[1727820131424,0.09730836,2469.2,2468.9,4.1737298]
[1727820131664,0.08082919,2469.3,2468.9,4.1737298]
[1727820131822,0.09730836,2469.2,2468.9,4.1737298]
[1727820132018,4.83848,2469.6,2469.0,0.7872]
[1727820132019,3.08082919,2469.5,2469.0,0.7872]
[1727820132260,4.04867,2470.0,2469.0,0.7872]
[1727820132261,0.7891,2469.9,2469.7,4.04905]
[1727820133329,0.08082919,2469.8,2469.5,4.0493]
[1727820135466,0.08082919,2469.8,2469.0,0.7872]
[1727820135644,0.08082919,2469.8,2469.6,4.04921]
[1727820135842,0.86992919,2469.9,2469.6,8.09836]
[1727820136032,0.86992919,2469.9,2469.6,4.04915]
[1727820136232,0.86992919,2469.9,2469.6,8.0983]
[1727820136447,0.86992919,2469.9,2469.6,4.04915]
[1727820137634,0.86992919,2469.9,2469.4,8.09888]
[1727820137971,0.86992919,2469.9,2469.4,4.04942]
[1727820138144,2.11679193,2469.9,2469.4,4.04942]
[1727820138342,6.16555193,2469.9,2469.4,4.04942]
[1727820139040,4.04899,2469.8,2469.3,4.04971]
[1727820139234,0.08082919,2469.7,2469.3,4.04971]
[1727820139437,0.09732387,2469.6,2469.3,4.04971]
[1727820139837,0.09732387,2469.6,2469.4,4.04955]
[1727820140344,0.09732387,2469.6,2469.2,4.04983]
[1727820140672,0.09732387,2469.6,2469.3,4.04972]
[1727820140871,0.09732387,2469.6,2469.2,4.04983]
[1727820141032,0.08082919,2469.5,2469.2,4.04983]
[1727820141430,0.09732387,2469.4,2469.0,4.05011]
[1727820141676,0.7723,2469.3,2469.0,8.10023]
[1727820141886,0.7723,2469.3,2469.1,4.04994]
[1727820142178,0.09732387,2469.2,2469.1,4.04994]
[1727820142559,0.08082919,2469.5,2468.9,0.1234598]
[1727820142870,0.7723,2470.0,2469.5,4.04928]
[1727820143069,0.177987,2469.9,2469.5,4.04939]
[1727820143435,0.177987,2469.9,2469.6,4.04923]
[1727820143634,0.177987,2469.9,2469.8,4.04891]
[1727820143635,0.09715781,2469.9,2469.8,4.04891]
[1727820143892,0.09715781,2469.9,2469.8,4.79971]
[1727820144183,0.08082919,2470.4,2470.1,4.04834]
[1727820144350,0.08082919,2470.4,2470.0,4.04854]
[1727820144546,0.09399676,2470.3,2470.0,4.04854]
[1727820144771,0.85312919,2470.2,2469.3,4.04961]
[1727820145000,0.85312919,2470.2,2469.1,0.7508]
[1727820145001,4.04909,2469.7,2469.1,4.04995]
[1727820145204,0.7723,2469.8,2469.0,4.05008]
[1727820145205,4.61233819,2469.6,2469.0,4.05008]
[1727820145497,0.17482595,2469.6,2469.2,4.04979]
[1727820145791,0.17482595,2469.6,2469.5,4.0494]
[1727820145792,0.09399676,2469.6,2469.5,4.0494]
[1727820146291,0.09399676,2469.6,2469.4,4.80034]
[1727820146292,0.7723,2470.1,2469.9,4.04874]
[1727820146452,0.08082919,2470.2,2469.8,4.04885]
[1727820146652,3.08082919,2470.2,2469.8,4.04881]
[1727820146853,4.12909919,2470.2,2469.8,4.04881]
[1727820147092,4.12909919,2470.2,2469.7,4.04906]
[1727820147302,0.08082919,2470.2,2469.8,4.04887]
[1727820147495,0.08082919,2470.2,2469.7,4.04906]
[1727820147678,0.08082919,2470.2,2469.7,4.04894]
[1727820147679,4.12907919,2470.2,2469.7,4.04894]
[1727820148009,0.7619,2469.6,2468.8,4.81814]
[1727820148306,4.04994,2469.2,2468.6,4.05075]
[1727820148452,0.84272919,2469.1,2468.6,4.05075]
[1727820148655,4.05022,2469.0,2468.4,4.0511]
[1727820148886,4.05022,2469.0,2468.3,4.05129]
[1727820149095,4.05022,2469.0,2468.0,4.54532313]
[1727820149096,10.703927,2469.0,2468.0,4.05176]
[1727820149253,10.703927,2469.0,2467.9,4.05202]
[1727820149254,12.015827,2469.0,2467.9,4.05202]
[1727820149454,12.015827,2469.0,2468.0,4.05173]
[1727820149677,12.015827,2469.0,2467.6,0.7677]
[1727820149678,7.81212,2469.0,2468.2,4.0515]
[1727820149907,0.7619,2469.0,2468.6,4.05086]
[1727820150062,0.7619,2469.3,2468.8,4.05042]
[1727820150261,0.08082919,2469.2,2469.0,4.0502]
[1727820150457,0.08082919,2469.2,2468.8,8.10082]
[1727820150661,0.08082919,2469.2,2468.8,4.0504]
[1727820150862,0.08082919,2469.2,2468.9,4.1737698]
[1727820151184,3.0,2469.6,2469.0,4.05012]
[1727820151354,0.08082919,2469.5,2469.2,4.04975]
[1727820151560,0.08082919,2469.5,2469.1,4.05005]
[1727820151875,0.7619,2469.4,2468.9,0.1234598]
[1727820152058,4.05022,2469.0,2468.9,0.1234598]
[1727820152258,10.718588,2469.0,2468.9,0.1234598]
[1727820152512,10.458142,2469.0,2468.9,0.1234598]
[1727820152672,30.538142,2469.0,2468.9,0.1234598]
[1727820153005,33.538142,2469.0,2468.9,0.1234598]
[1727820153377,38.08346513,2469.0,2468.9,0.1234598]
[1727820153729,33.538142,2469.0,2468.9,0.1234598]
[1727820154206,0.7619,2468.0,2467.4,4.05273]
[1727820154492,0.17434531,2467.9,2467.3,0.7677]
[1727820154702,0.17434531,2467.9,2467.8,4.05219]
[1727820154703,0.09351612,2467.9,2467.8,4.05219]
[1727820154912,0.7619,2468.3,2468.0,4.05175]
[1727820155206,0.7619,2468.6,2468.3,4.05124]
[1727820155505,0.08082919,2468.5,2468.4,4.0512]
[1727820155707,0.08082919,2468.5,2468.1,8.10314]
[1727820155861,0.08082919,2468.5,2468.1,8.10313]
[1727820156056,0.08082919,2468.5,2468.1,4.05154]
[1727820156304,0.08082919,2468.6,2468.4,4.05112]
[1727820156501,0.08082919,2468.8,2468.5,4.05104]
[1727820157083,2.10243839,2468.9,2468.6,4.05076]
[1727820157284,4.05056,2468.8,2468.1,4.05167]
[1727820157508,0.7619,2468.5,2467.9,8.1039]
[1727820157717,0.08082919,2468.4,2467.9,4.05194]
[1727820157924,4.13204919,2468.4,2467.9,4.05194]
[1727820158217,0.7619,2468.1,2467.6,4.05251]
[1727820158370,0.08082919,2468.0,2467.6,4.05251]
[1727820158569,0.08082919,2468.0,2467.4,0.7677]
[1727820158570,3.7619,2467.8,2466.9,4.05355]
[1727820158797,3.7619,2467.8,2466.8,4.05381]
[1727820158798,3.7619,2467.3,2466.8,4.05381]
[1727820159028,0.08082919,2467.2,2466.8,4.05381]
[1727820159174,0.08082919,2467.2,2466.9,4.05366]
[1727820159891,0.08082919,2467.2,2466.7,4.05391]
[1727820160641,0.08082919,2467.2,2466.9,4.05364]
[1727820160807,0.08082919,2467.2,2466.8,4.05381]
[1727820161003,0.08082919,2467.2,2466.7,4.05391]
[1727820161540,4.8145,2467.6,2466.9,4.05365]
[1727820161743,0.08082919,2467.5,2466.9,4.05365]
[1727820161945,0.08082919,2467.5,2466.7,0.49450698]
[1727820161946,0.08082919,2467.5,2467.2,4.05308]
[1727820162248,4.89525919,2467.6,2466.9,4.0536]
[1727820162403,4.89525919,2467.6,2466.7,0.49450698]
[1727820162404,3.0,2467.3,2466.7,4.05386]
[1727820162740,0.08082919,2467.3,2466.9,4.05355]
[1727820162938,0.08082919,2467.3,2467.0,4.05335]
[1727820163781,0.08082919,2467.4,2467.1,4.05333]
[1727820163919,0.7619,2467.6,2467.3,4.05301]
[1727820164126,0.08082919,2467.7,2467.3,4.05301]
[1727820164341,0.08082919,2467.7,2467.4,4.05283]
[1727820164651,4.87857,2467.9,2467.5,4.05256]
[1727820164652,0.8265,2467.9,2467.5,4.05256]
[1727820164804,1.44330849,2467.9,2467.4,4.05283]
[1727820165166,4.87815,2468.2,2467.7,4.05223]
[1727820165327,0.08082919,2468.1,2467.7,4.05223]
[1727820165940,0.08082919,2468.2,2467.7,4.05223]
[1727820166266,0.08082919,2468.2,2467.9,4.05192]
[1727820166451,0.08082919,2468.3,2467.9,4.05192]
[1727820166610,4.13220919,2468.3,2467.7,4.0523]
[1727820166957,0.8265,2468.1,2467.9,4.05201]
[1727820167267,3.08082919,2468.3,2467.9,4.05201]
[1727820167424,0.79585992,2468.2,2467.7,4.0523]
[1727820167635,0.08082919,2468.2,2467.7,4.0523]
[1727820167836,0.08082919,2468.2,2467.9,4.05201]
[1727820168164,0.08082919,2468.3,2467.9,4.88511]
[1727820168455,0.0923059,2468.2,2468.0,4.05183]
[1727820168620,4.05096,2468.6,2467.9,4.88511]
[1727820168621,4.13178919,2468.6,2467.9,4.88511]
[1727820168821,0.0923059,2468.5,2467.9,6.29685722]
[1727820169021,0.08082919,2468.4,2467.9,6.29685722]
[1727820169562,0.0923059,2468.3,2467.9,6.29685722]
[1727820169918,0.0923059,2468.3,2467.9,2.24484722]
[1727820170161,0.0923059,2468.3,2467.9,0.8331]
[1727820170659,0.0923059,2468.3,2468.0,4.05184]
[1727820170866,3.8265,2468.7,2468.0,4.05184]
[1727820170867,0.08082919,2468.6,2468.0,4.05184]
[1727820171072,0.0923059,2468.5,2468.0,4.05184]
[1727820171360,0.0923059,2468.5,2468.0,4.07516976]
[1727820171560,0.0923059,2468.5,2468.0,4.97119874]
[1727820172354,0.0923059,2468.5,2468.1,4.0516]
[1727820172554,0.0923059,2468.5,2468.2,4.05139]
[1727820172762,8.2065,2468.9,2468.3,4.05127]
[1727820173065,8.2065,2468.9,2468.4,0.8331]
[1727820173066,7.38,2468.9,2468.4,0.8331]
[1727820173377,7.46082919,2468.9,2468.4,0.8331]
[1727820176646,13.06736411,2468.9,2468.2,4.05139]
[1727820176841,0.8265,2468.7,2468.2,4.05139]
[1727820177430,0.08082919,2468.6,2467.9,0.8038]
[1727820177635,0.47156211,2468.6,2467.9,4.8557]
[1727820177835,4.52257211,2468.6,2467.9,4.8557]
[1727820178069,4.05105,2468.5,2467.9,0.8038]
[1727820178278,0.08082919,2468.4,2467.9,0.8038]
[1727820178444,0.08082919,2468.5,2467.9,4.85571]
[1727820179072,0.08082919,2468.5,2468.0,4.05184]
[1727820179441,0.90732919,2468.7,2468.0,9.49120757]
[1727820179644,0.90732919,2468.7,2468.2,4.05151]
[1727820180273,8.93614492,2468.9,2468.0,6.06716508]
[1727820180274,7.38,2468.9,2468.0,6.06716508]
[1727820180573,7.38,2468.9,2468.3,4.05136]
[1727820180574,7.46082919,2468.9,2468.3,4.05136]
[1727820180741,7.46082919,2468.9,2468.4,4.85487]
[1727820181302,7.38,2468.9,2468.4,4.85487]
[1727820181778,0.8259,2469.0,2468.4,4.85487]
[1727820181957,0.90672919,2469.0,2468.4,4.85487]
[1727820182594,0.8259,2469.0,2468.5,0.06057848]
[1727820183491,4.05106,2468.5,2467.9,0.8038]
[1727820183696,0.08082919,2468.4,2467.9,0.8038]
[1727820184293,0.08082919,2468.4,2467.9,4.84933]
[1727820184489,0.09324478,2468.3,2468.0,4.05185]
[1727820184676,0.09324478,2468.3,2467.9,0.7974]
[1727820184882,0.09324478,2468.3,2467.9,0.7958]
[1727820185099,0.09324478,2468.3,2467.9,0.7926]
[1727820185254,0.90672919,2468.5,2468.0,4.05177]
[1727820185452,0.09324478,2468.4,2468.0,4.536127]
[1727820185750,0.09324478,2468.4,2468.2,4.04752]
[1727820185999,0.09324478,2468.4,2468.2,4.04432]
[1727820186152,0.08082919,2468.6,2468.2,4.04352]
[1727820186354,0.09324478,2468.3,2468.0,4.05177]
[1727820186558,0.08082919,2468.6,2468.0,4.04857]
[1727820186759,0.09324478,2468.2,2468.0,8.09714]
[1727820186986,1.28163211,2468.6,2468.0,4.04537]
[1727820187199,0.09324478,2468.1,2468.0,4.04457]
[1727820187356,0.08082919,2468.6,2468.1,4.04918]
[1727820187693,0.08082919,2468.6,2468.0,4.04057]
[1727820187893,0.09324478,2468.5,2468.0,4.04057]
[1727820188099,0.09324478,2468.5,2468.1,4.05168]
[1727820188265,0.09324478,2468.5,2468.1,4.04848]
[1727820188459,0.09324478,2468.5,2468.1,4.04768]
[1727820188662,0.09324478,2468.5,2468.1,4.04608]
[1727820189574,0.09324478,2468.5,2467.9,4.84369]
[1727820189757,0.09324478,2468.5,2468.0,4.05182]
[1727820191978,0.09324478,2468.5,2468.1,4.05168]
[1727820192473,0.09324478,2468.5,2468.1,4.05162]
[1727820192794,0.8259,2468.7,2468.2,4.0515]
[1727820192967,0.09317498,2468.4,2468.3,4.05137]
[1727820193167,0.8259,2468.7,2468.3,4.05137]
[1727820193372,0.09317498,2468.4,2468.3,4.05137]
[1727820193568,0.8259,2468.7,2468.3,4.05137]
[1727820193775,0.09317498,2468.4,2468.3,4.05137]
[1727820193969,0.8259,2468.7,2468.3,4.05137]
[1727820194179,0.8259,2468.7,2468.2,4.0515]
[1727820194180,0.09317498,2468.4,2468.2,4.0515]
[1727820194365,0.8259,2468.7,2468.2,4.0515]
[1727820194564,0.09317498,2468.3,2468.2,8.10292]
[1727820194760,0.8259,2468.7,2468.2,8.10292]
[1727820194993,0.09317498,2468.3,2468.2,4.05142]
[1727820195303,0.09317498,2468.3,2468.0,8.10347]
[1727820195605,7.95753919,2468.7,2468.0,4.05172]
[1727820195804,0.09317498,2468.2,2468.0,4.05172]
[1727820195974,1.20080892,2468.6,2468.1,4.05169]
[1727820197935,1.20080892,2468.6,2467.9,5.96819508]
[1727820198082,1.20080892,2468.6,2468.1,4.05156]
[1727820198282,1.20080892,2468.6,2468.2,4.0515]
[1727820198523,1.20080892,2468.6,2468.1,4.05156]
[1727820198713,3.90672919,2468.7,2468.2,4.05151]
[1727820198914,3.0,2468.9,2468.4,4.05119]
[1727820199225,3.0,2468.9,2468.4,4.93573286]
[1727820199430,4.85482,2469.0,2468.4,4.93573286]
[1727820199647,0.09318661,2468.8,2468.4,4.93573286]